Cogmind - Beta 15 @@@ ROGUE MODE // 2025.07.28 @ 08:27:12 Player: ForestDarkPsy Result: Self-destructed Performance ------------- Evolutions (3) 1500 Regions Visited (5) 1000 Robots Destroyed (65) 325 Value Destroyed (2061) 2061 Prototype IDs (4) 80 Alien Tech Used (0) 0 Bonus (-54) -54 TOTAL SCORE: 4912 Bonus ------- Friendly Fire -54 Cogmind --------- Core Integrity 700/700 Matter 214/300 Energy 280/280 System Corruption 0% Temperature Cool (0) Movement Treading (160) Location -7/Factory Parts ------- > --- POWER (1) -------- Heavy Ion Engine > --- PROPULSION (4) --- Light Treads Light Treads Light Treads Light Treads > --- UTILITY (5) ------ Large Storage Unit Trap Scanner Improved Sensor Array Improved Signal Interpreter Hacking Suite > --- WEAPON (3) ------- Enhanced Autogun Enhanced Autogun Enhanced Autogun > --- INVENTORY (15) --- Light Angular Momentum Engine Armored Wheel Aerolev Unit Improved Heat Sink High-capacity Battery (250) High-capacity Matter Pod (200) Structural Scanner Advanced Visual Processing Unit Medium Armor Plating High-powered Tractor Beam Light EM Pulse Cannon Rocket Launcher Heavy Hammer Peak State ------------ > --- POWER ------------ Heavy Ion Engine > --- PROPULSION ------- Light Treads Light Treads Light Treads Light Treads > --- UTILITY ---------- Large Storage Unit Trap Scanner Improved Sensor Array Improved Signal Interpreter Hacking Suite > --- WEAPON ----------- Enhanced Autogun Enhanced Autogun Enhanced Autogun > --- INVENTORY -------- Light Angular Momentum Engine Armored Wheel Aerolev Unit Improved Heat Sink High-capacity Battery High-capacity Matter Pod Structural Scanner Advanced Visual Processing Unit Medium Armor Plating High-powered Tractor Beam Light EM Pulse Cannon Rocket Launcher Heavy Hammer [Rating: 35] Favorites ----------- Power Light Ion Engine Engine Light Ion Engine Power Core Light Nuclear Core Propulsion Light Treads Treads Light Treads Wheel Armored Wheel Utility Large Storage Unit Device Improved Sensor Array Storage Large Storage Unit Processor Improved Signal Interpreter Hackware Hacking Suite Protection Improved Light Armor Plating Weapon Enhanced Autogun Energy Gun Small Laser Energy Cannon Light EM Pulse Cannon Ballistic Gun Enhanced Autogun Ballistic Cannon Light Cannon Launcher Grenade Launcher Impact Weapon Heavy Hammer Build | -11 -10 -9 -8 -8 -7 ------- Run | Yrd Mat Mat Mat Sto Fac Slots Evolved 6 | . . 2 2 . 2 Power . | . . . . . . Propulsion 2 | . . 1 . . 1 Utility 3 | . . 1 1 . 1 Weapon 1 | . . . 1 . . Parts Attached 61 | 7 5 7 24 16 2 Power 6 | 1 . 1 2 2 . Engine 5 | 1 . 1 1 2 . Core 1 | . . . 1 . . Reactor . | . . . . . . Propulsion 19 | 2 . 2 6 8 1 Treads 17 | 2 . 2 4 8 1 Leg . | . . . . . . Wheel 2 | . . . 2 . . Hover . | . . . . . . Flight . | . . . . . . Utility 17 | 2 2 1 11 . 1 Device 8 | 1 1 . 6 . . Storage 4 | 1 1 . 2 . . Processor 1 | . . . 1 . . Hackware 1 | . . . . . 1 Protection 3 | . . 1 2 . . Artifact . | . . . . . . Weapon 19 | 2 3 3 5 6 . Energy Gun 2 | 1 1 . . . . Energy Cannon 2 | . . 1 1 . . Ballistic Gun 12 | 1 . 2 3 6 . Ballistic Cannon 1 | . 1 . . . . Launcher 1 | . 1 . . . . Special Weapon . | . . . . . . Impact Weapon 1 | . . . 1 . . Slashing Weapon . | . . . . . . Piercing Weapon . | . . . . . . Special Melee Weapon . | . . . . . . Unidentified Prototypes . | . . . . . . Parts Lost 1 | . . . 1 . . Power 1 | . . . 1 . . Propulsion . | . . . . . . Utility . | . . . . . . Weapon . | . . . . . . Highest Loss Streak 1 | . . . 1 . . To Critical Strikes . | . . . . . . Average Backups 11 | . 6 13 14 15 13 Power . | . . . . . 1 Propulsion 3 | . 3 4 4 3 2 Utility 4 | . 1 3 6 7 7 Weapon 2 | . 1 4 3 3 3 Tool/Special . | . . . . . . Unused Backups 12 | . 1 3 1 1 6 Power 2 | . . . . 1 1 Propulsion 3 | . . 2 . . 1 Utility 4 | . 1 . . . 3 Weapon 3 | . . 1 1 . 1 Tool/Special . | . . . . . . Average Slot Usage (%) 99 | . 100 99 99 100 98 Engine 10 | . 14 11 5 9 7 Treads 27 | . 28 33 26 27 30 Device 16 | . 14 17 14 17 17 Storage 11 | . 14 11 11 9 7 Processor 3 | . . . . 9 7 Protection 2 | . . 4 9 . . Energy Gun 2 | . 7 2 . . . Ballistic Gun 19 | . 11 11 25 24 23 Ballistic Cannon 1 | . 2 3 . . . Launcher 1 | . 5 1 . . . Peak Build Rating 35 | 7 8 15 32 31 35 Average Rating 19 | 5 7 12 25 29 34 On Entrance 15 | . 7 8 15 29 31 Naked Turns . | . . . . . . Heaviest Build 45 | 11 29 35 45 41 41 Greatest Support 80 | 40 40 60 60 60 80 Greatest Overweight (x) 1 | . . . 1 . . Average Overweight (x) . | . . . . . . Largest Inventory Capacity 15 | 8 15 15 15 15 15 Average Capacity 13 | 7 9 15 15 15 15 Most Carried 15 | 1 10 15 15 15 14 Average Carried 11 | . 6 13 14 14 13 Final Capacity 15 | 8 15 15 15 15 15 Final Carried 15 | 1 10 15 15 15 13 Class Distribution -------------------- 38% | Mutant 24% | Skirmisher 13% | Tank 9% | Assassin 4% | Scavenger-Mutant 4% | Scavenger-Skirmisher 4% | Scavenger-Tank Dominant Class ---------------- Mutant | -10/Materials Mutant | -9/Materials Tank | -8/Materials Skirmisher | -8/Storage Skirmisher | -7/Factory Resources | -11 -10 -9 -8 -8 -7 ----------- Run | Yrd Mat Mat Mat Sto Fac Matter Collected 2737 | 285 86 419 1058 889 . Remotely 289 | . . . 289 . . Salvage Created 2383 | 155 48 280 993 907 . Parts 166 | 8 4 24 68 62 . Haulers Intercepted . | . . . . . . Recyclers Shooed . | . . . . . . Parts Field Recycled . | . . . . . . Retrieved Matter . | . . . . . . Parts Self-Destructed . | . . . . . . Prevented . | . . . . . . Kills | -11 -10 -9 -8 -8 -7 ------- Run | Yrd Mat Mat Mat Sto Fac Combat Hostiles Destroyed 49 | . 4 8 21 16 . Guns 40 | . . 5 19 16 . Cannons 3 | . . 3 . . . AOE 6 | . 4 . 2 . . Classes Destroyed 9 | 2 2 2 2 1 . Worker 2 | . . . 2 . . Builder 1 | . . . 1 . . Tunneler 3 | 3 . . . . . Recycler 2 | 1 . 1 . . . Watcher 8 | . . 2 4 2 . Swarmer 12 | . 3 4 5 . . Grunt 17 | . 1 3 7 6 . Sentry 19 | . . 1 9 9 . Hunter 1 | . . . . 1 . Best Kill Streak 9 | 3 4 5 9 3 . Combat Bots Only 8 | . 4 5 8 3 . Max Kills in Single Turn 3 | 1 3 1 2 1 . Gunslinging 1 | . . . 1 . . Exploded 3 | . 3 . 1 . . Melee . | . . . . . . Uniques/NPCs Destroyed . | . . . . . . Combat | -11 -10 -9 -8 -8 -7 -------- Run | Yrd Mat Mat Mat Sto Fac Hostile Shots Fired 142 | . 7 21 76 38 . Missed 31 | . 2 3 17 9 . Hits 111 | . 5 18 59 29 . Projectile 111 | . 5 18 59 29 . Critical Strikes 2 | . . . 1 1 . Damage Taken 1498 | . 41 210 666 581 . Core 132 | . . 44 72 16 . Absorbed by Shields 122 | . . . 122 . . Core Remaining (%) 93 | 100 100 89 . 84 . Volleys Fired 142 | 15 2 23 61 41 . Largest 3 | 2 1 2 3 3 . Hottest 86 | 60 30 86 80 75 . Shots Fired 373 | 30 2 41 179 121 . Gun 354 | 30 . 29 175 120 . Cannon 13 | . . 12 . 1 . Launcher 6 | . 2 . 4 . . Special . | . . . . . . Kinetic 345 | 15 . 35 175 120 . Thermal 15 | 15 . . . . . Explosive 6 | . 2 . 4 . . Electromagnetic 7 | . . 6 . 1 . Robot Hit Streak 15 | 5 5 5 10 15 . Robot Miss Streak 6 | 3 1 5 6 3 . Penetration Max . | . . . . . . Secondary Targets 3 | . . . 1 2 . Max Gunslinging Chain 1 | . . . 1 1 . Shots Hit Robots 238 | 19 1 27 108 83 . Core Hits 108 | 7 5 16 49 31 . Critical Kills 3 | 1 . . 2 . . Critical Parts Destroyed . | . . . . . . Critical Strikes 4 | 1 . . 2 1 . Destroy 4 | 1 . . 2 1 . Melee Attacks 13 | . . . 1 12 . Impact 13 | . . . 1 12 . Slashing . | . . . . . . Piercing . | . . . . . . Sneak Attacks . | . . . . . . Combat Hostiles . | . . . . . . Follow-up Attacks . | . . . . . . Damage Inflicted 4345 | 172 147 493 2145 1388 . Guns 3766 | 172 . 309 1941 1344 . Cannons 222 | . . 184 . 38 . Explosions 351 | . 147 . 204 . . Melee . | . . . . . . Ramming 6 | . . . . 6 . Kinetic 3751 | 94 . 372 1941 1344 . Thermal 78 | 78 . . . . . Explosive 351 | . 147 . 204 . . Electromagnetic 159 | . . 121 . 38 . Impact . | . . . . . . Slashing . | . . . . . . Piercing . | . . . . . . Highest Corruption 1 | . 1 . . . . Average Corruption 1 | . 1 . . . . Corruption Purged . | . . . . . . Corruption Blocked . | . . . . . . Effects 1 | . 1 . . . . Matter Fused 1 | . 1 . . . . Overload Shots . | . . . . . . Overflow Damage 3 | . . . 3 . . Projectiles . | . . . . . . Explosions 3 | . . . 3 . . Melee . | . . . . . . Knockbacks 1 | . . 1 . . . Impact . | . . . . . . Kinetic 1 | . . 1 . . . Secondary . | . . . . . . Self-Inflicted Damage . | . . . . . . Shots . | . . . . . . Rammed 1 | . . . . 1 . Targets Rammed 1 | . . . . 1 . Kicked . | . . . . . . Crushed . | . . . . . . Highest Temperature 270 | 60 . 30 270 191 . Average Temperature 60 | 30 . 8 78 57 . Received Heat Transfer 441 | . . 78 219 144 . Siege Activations . | . . . . . . Martial Activations . | . . . . . . Shielding Activations . | . . . . . . Robots Disrupted . | . . . . . . Combat Hostiles . | . . . . . . Robots Corrupted . | . . . . . . Combat Hostiles . | . . . . . . Parts Fried 3 | . . 2 . 1 . Impact Corruptions . | . . . . . . Robots Melted . | . . . . . . Combat Hostiles . | . . . . . . Parts Melted . | . . . . . . Heat Transferred 175 | 175 . . . . . Parts Sabotaged . | . . . . . . Parts Stolen . | . . . . . . Parts Stripped . | . . . . . . Power Chain Reactions . | . . . . . . Alert | -11 -10 -9 -8 -8 -7 ------- Run | Yrd Mat Mat Mat Sto Fac Maximum Alert Level 1 | . . . 1 1 . Low Security (%) 90 | 100 100 100 46 99 100 Level 1 9 | . . . 53 . . Level 2 . | . . . . . . Level 3 . | . . . . . . Level 4 . | . . . . . . Level 5 . | . . . . . . High Security . | . . . . . . Max Security . | . . . . . . Peak Influence 364 | 5 111 154 364 201 63 Initial 141 | . . . 61 141 63 Average 84 | 1 20 29 197 104 50 Influence Increases 1632 | 20 159 284 624 545 . Destroy 0b10 Robot/C 980 | . 80 160 420 320 . Destroy 0b10 Robot/NC 80 | 20 . 15 35 10 . Destroy Leader 296 | . 20 34 128 114 . Successful Hack 73 | . 40 . 12 21 . Disable Machine 60 | . . 15 . 45 . Destroy Structure 53 | . 19 . 29 5 . Partial Spotted 15 | . . . . 15 . Lose Combat Pursuer 75 | . . 60 . 15 . Influence Decreases 1599 | 20 157 140 435 740 107 Entered New Map 358 | . . 2 85 194 77 Time Decay 1231 | 20 157 138 340 546 30 Lost Part 10 | . . . 10 . . Squads Dispatched 9 | . 2 1 4 1 1 Investigation 4 | . 2 1 . . 1 Extermination . | . . . . . . Reinforcement 1 | . . . . 1 . Assault . | . . . . . . Garrison 4 | . . . 4 . . Intercept . | . . . . . . Searches Triggered . | . . . . . . Construction Impeded . | . . . . . . Haulers Reinforced . | . . . . . . Active Scanning Responses . | . . . . . . Cargo Convoy Interrupts . | . . . . . . Stealth | -11 -10 -9 -8 -8 -7 --------- Run | Yrd Mat Mat Mat Sto Fac Distress Signals 11 | . 2 3 4 2 . Communications Jammed . | . . . . . . Distress Signals . | . . . . . . Times Spotted 73 | . 4 18 31 20 . Peak Tracking Total 7 | . 3 7 5 3 . Tactical Retreats 3 | . . 2 . 1 . Traps | -11 -10 -9 -8 -8 -7 ------- Run | Yrd Mat Mat Mat Sto Fac Traps Triggered 4 | . 3 1 . . . Indirectly . | . . . . . . Trap Hack Attempts . | . . . . . . Triggered . | . . . . . . Disarmed . | . . . . . . Reprogrammed . | . . . . . . Reused . | . . . . . . Traps Extracted . | . . . . . . Installed . | . . . . . . Triggered . | . . . . . . Machines | -11 -10 -9 -8 -8 -7 ---------- Run | Yrd Mat Mat Mat Sto Fac Machines Disabled 4 | . . 1 . 3 . Max in Single Turn 1 | . . 1 . 1 . Machines Repaired . | . . . . . . Machines Dismantled . | . . . . . . Machines Sabotaged . | . . . . . . Overloaded Fab Kills . | . . . . . . Hacking | -11 -10 -9 -8 -8 -7 --------- Run | Yrd Mat Mat Mat Sto Fac Machines Accessed 19 | . 8 2 3 5 1 Terminals 17 | . 8 2 1 5 1 Fabricators . | . . . . . . Repair Stations . | . . . . . . Recycling Units . | . . . . . . Scanalyzers 1 | . . . 1 . . Garrison Access 1 | . . . 1 . . Total Hacks 49 | . 19 3 8 16 3 Successful 26 | . 14 . 5 7 . Failed 22 | . 4 3 3 9 3 Catastrophic 5 | . 1 . 2 1 1 Database Lockouts 1 | . 1 . . . . Manual 21 | . 10 . 1 10 . Terminals 44 | . 19 3 3 16 3 Fabricators . | . . . . . . Repair Stations . | . . . . . . Recycling Units . | . . . . . . Scanalyzers 2 | . . . 2 . . Garrison Access 3 | . . . 3 . . Terminal Hacks 16 | . 10 . . 6 . Robot Analysis 1 | . 1 . . . . Prototype ID Bank 1 | . 1 . . . . Open Door 1 | . . . . 1 . Branch Access Points 2 | . 1 . . 1 . Terminal Index 1 | . 1 . . . . Alert Level 2 | . 1 . . 1 . Locate Traps 3 | . 1 . . 2 . Hauler Manifests 1 | . 1 . . . . Registered Components 2 | . 1 . . 1 . Zone Layout 2 | . 2 . . . . Fabricator Hacks . | . . . . . . Repair Station Hacks . | . . . . . . Recycling Unit Hacks . | . . . . . . Scanalyzer 2 | . . . 2 . . Insert Component 1 | . . . 1 . . Analyze 1 | . . . 1 . . Garrison Access Hacks 2 | . . . 2 . . Unlock Access 1 | . . . 1 . . Coupler Status 1 | . . . 1 . . Unauthorized Hacks 6 | . 4 . 1 1 . Terminals 6 | . 4 . 1 1 . Botnet 6 | . 4 . 1 1 . Fabricators . | . . . . . . Repair Stations . | . . . . . . Recycling Units . | . . . . . . Scanalyzers . | . . . . . . Garrison Access . | . . . . . . Data Cores Recovered . | . . . . . . Used . | . . . . . . Hacking Detections 17 | . 8 2 2 4 1 Full Trace Events 1 | . . . . . 1 Feedback Events . | . . . . . . Feedback Blocked . | . . . . . . Robot Schematics Acquired . | . . . . . . Robots Built . | . . . . . . Authchips . | . . . . . . Time . | . . . . . . Total Robot Build Rating . | . . . . . . Part Schematics Acquired 1 | . . . 1 . . Parts Built . | . . . . . . Authchips . | . . . . . . Time . | . . . . . . Total Part Build Rating . | . . . . . . Parts Repaired . | . . . . . . Time . | . . . . . . Parts Recycled . | . . . . . . Recycled Matter . | . . . . . . Retrieved Matter . | . . . . . . Retrieved Components . | . . . . . . Parts Scanalyzed 1 | . . . 1 . . Part Schematics Acquired 1 | . . . 1 . . Parts Damaged . | . . . . . . Bothacking | -11 -10 -9 -8 -8 -7 ------------ Run | Yrd Mat Mat Mat Sto Fac Used RIF Installer . | . . . . . . Robots Hacked . | . . . . . . Non-combat . | . . . . . . Combat . | . . . . . . Robot Hacks Applied . | . . . . . . Relay Couplers Released . | . . . . . . Fabnet Peak Effective % . | . . . . . . Robots Rewired . | . . . . . . Allies Hacked . | . . . . . . Hacks Repelled . | . . . . . . Allies | -11 -10 -9 -8 -8 -7 -------- Run | Yrd Mat Mat Mat Sto Fac Total Allies . | . . . . . . Largest Group . | . . . . . . Highest-Rated Group . | . . . . . . Highest-Rated Ally . | . . . . . . Total Orders . | . . . . . . Ally Attacks . | . . . . . . Total Damage . | . . . . . . Kills . | . . . . . . Allies Corrupted . | . . . . . . Allies Melted . | . . . . . . Intel | -11 -10 -9 -8 -8 -7 ------- Run | Yrd Mat Mat Mat Sto Fac Active Infowar (turns) 3854 | 14 1232 449 521 1570 68 Sensors 1846 | . . . 208 1570 68 Structural 1243 | . 510 270 238 204 21 Traps 1476 | . . . 55 1353 68 Seismic 1442 | 14 722 448 258 . . Robot Analysis Total 1 | . 1 . . . . Derelict Logs Recovered . | . . . . . . Drone Launches . | . . . . . . Drone Recoveries . | . . . . . . Exploration | -11 -10 -9 -8 -8 -7 ------------- Run | Yrd Mat Mat Mat Sto Fac Turns Passed 4238 | 154 1232 449 765 1570 68 Spaces Moved 2093 | 70 707 210 309 757 40 Core 9 | 9 . . . . . Treads 2075 | 61 707 210 300 757 40 Legs . | . . . . . . Wheels 9 | . . . 9 . . Hover . | . . . . . . Flight . | . . . . . . Fastest Speed 50 | 50 160 160 105 160 160 Average Speed 159 | 145 160 160 158 160 160 Slowest Speed 160 | 160 160 160 160 160 160 Overloaded Moves . | . . . . . . Propulsion Burnouts . | . . . . . . Robots Hopped . | . . . . . . Potential Cave-ins . | . . . . . . Cave-ins Triggered . | . . . . . . Exploration Rate (%) 39 | 5 91 22 34 85 1 Regions Visited 5 Branch Regions 1 Pre-discovered Areas . | . . . . . . Known Exits Taken 2 | . . . 1 1 . Unknown Exits Taken 3 | 1 1 1 . . . Scrap Searched . | . . . . . . Spaces Dug 4 | . . . 1 3 . Terrain Destroyed 41 | . 16 . 22 3 . Melee 4 | . . . 1 3 . Projectile . | . . . . . . AOE 37 | . 16 . 21 . . Terrain Rammed . | . . . . . . Walls Destroyed . | . . . . . . Machines Disabled . | . . . . . . Actions | -11 -10 -9 -8 -8 -7 --------- Run | Yrd Mat Mat Mat Sto Fac Total 2791 | 92 804 285 514 1053 43 Wait 367 | . 76 22 83 186 . Move 2088 | 69 706 209 308 756 40 Hop . | . . . . . . Pick Up 38 | 1 10 12 9 6 . Fast Attach 13 | 7 1 1 3 1 . Attach 8 | . . 3 3 . 2 Detach . | . . . . . . Swap 72 | . 6 8 27 30 1 Drop 49 | . 3 7 19 20 . Fire 142 | 15 2 23 61 41 . Melee 13 | . . . 1 12 . Ram . | . . . . . . Kick . | . . . . . . Crush 1 | . . . . 1 . Escape Stasis . | . . . . . . Rewire . | . . . . . . Trap . | . . . . . . Miscellaneous . | . . . . . . Route ------- -11/Scrapyard -10/Materials (discovered 5 exits: *Mat x2 / *Min x2 / [*Sub]) -9/Materials -8/Materials (discovered 2 exits: *Sto / Gar) -8/Storage (discovered 2 exits: *Fac / *Rec) -7/Factory History --------- Turn | Location | Event 11 | -11/Scrapyard | Discovered new exit (range 15) 155 | -11/Scrapyard | Entered Materials 256 | -10/Materials | Central database locked down 314 | -10/Materials | Build established: Mutant 690 | -10/Materials | Discovered new exit (range 15) 922 | -10/Materials | Discovered new exit (range 11) 927 | -10/Materials | Discovered new exit (range 15) 1124 | -10/Materials | Identified exit to Mines 1216 | -10/Materials | Discovered new exit (range 16) 1387 | -10/Materials | Entered another Materials area 1387 | -9/Materials | Evolved 2 slots: Propulsion x1, Utility x1 1833 | -9/Materials | Discovered new exit (range 3) 1836 | -9/Materials | Entered another Materials area 1836 | -8/Materials | Evolved 2 slots: Utility x1, Weapon x1 1959 | -8/Materials | Discovered new exit (range 16) 2175 | -8/Materials | Garrison activated, responded to threat 2192 | -8/Materials | Build established: Tank 2274 | -8/Materials | Destroyed 8 combat bots 2305 | -8/Materials | Identified exit to Garrison 2544 | -8/Materials | Garrison activated, responded to threat 2599 | -8/Materials | Identified exit to Storage 2601 | -8/Materials | Entered Storage 3085 | -8/Storage | Build established: Skirmisher 3629 | -8/Storage | Met 01-MTF 3701 | -8/Storage | Discovered new exit (range 4) 3702 | -8/Storage | Identified exit to Recycling 3811 | -8/Storage | Build established: Assassin 4113 | -8/Storage | Discovered new exit (range 16) 4169 | -8/Storage | Identified exit to Factory 4171 | -8/Storage | Entered Factory 4171 | -7/Factory | Accompanied by 1 ally (01-MTF) 4171 | -7/Factory | Evolved 2 slots: Propulsion x1, Utility x1 4174 | -7/Factory | 01-MTF left 4239 | -7/Factory | Self-destructed Last Messages --------------- 04159_ Heat Sink fried. 04159_ Y-45 Defender destroyed. 04161_ The unstable cave ceiling collapses. 04161_ Chain reaction triggered in Imp. Ion Engine. 04161_ Transfer Shaft disabled. 04161_ Y-45 Defender destroyed. 04163_ U-05 Engineer builds a Wall. 04163_ K-01 Serf collects debris. 04169_ The unstable cave ceiling collapses. 04169_ EXIT=IDENTIFIED: FACTORY 04171_ R-06 Scavenger collects Wheel. PARAMETERS=PROPULSION+1,UTILITY+1 LOCATION=FACTORY GOAL=ESCAPE 04174_ 01-MTF: "Oops, took a wrong turn!" 04174_ 01-MTF suddenly disappears in plain sight. 04193_ Connecting with Terminal... 04212_ ALERT: Suspicious activity at Terminal F016. Dispatching Investigation squad. 04225_ K-01 Serf pushes Y-54 Guardian. Map ----- +----------------------------------------------------+ | ??????????????????????????????????????????????? | | ????????????????????????????????? ????????? | | ????????????????????????????#####+#+##????????? | | ??????????????????????????? ^ ##????????? | | ???????????????????????????# ###???????? | | ???????????????????????????#"""^ ####??????? | | ??????????????????????????##"F" "" #??????? | | ??????????????????????????##" """#??????? | | ??????????????????????????##"""^ F"#??????? | | ??????????????????????????##""" """#??????? | | ??????????????????????? #### "" #??????? | | ??????????????????????? #### k ####??????? | | ??????????????????????? # "" ####??????? | | ???????????????????????+#""" "" """#??????? | | ??????????????????????? #"T k "" T"#??????? | | ??????????????????????? #""" """ """#??????? | | ??????????????????????? # "" """ ####??????? | | ??????????????????????? #### """ ##????????? | | ??????????????????? #### =##????????? | | ??????????????????????? / ##????????? | | ??????????????????????? ####### ##????????? | | ??????????????????????? ####### ##????????? | | ???????????????????? #######r ####??????? | | ?????????? ################ ####??????? | | ?????????? ##??????? | | ?????????? @ ##??????? | | ?????????? ##??????? | | ?????????? ##??????? | | ??????????? ##??????? | | ???????????#########+###################??????? | | ??????????????????? ###############??????? | | ??????????????????????????????????????????????? | | ??????????????????????????????????????????????? | | ??????????????????????????????????????????????? | | ??????????????????????????????????????????????? | | ??????????????????????????????????????????????? | | ??????????????????????????????????????????????? | | ??????????????????????????????????????????????? | | ??????????????????????????????????????????????? | | ??????????????????????????????????????????????? | | ??????????????????????????????????????????????? | | ??????????????????????????????????????????????? | | ??????????????????????????????????????????????? | | ??????????????????????????????????????????????? | | ??????????????????????????????????????????????? | | ??????????????????????????????????????????????? | | ??????????????????????????????????????????????? | | ??????????????????????????????????????????????? | | | | | +----------------------------------------------------+ Best States ------------- Heat Dissipation 34 Energy Generation 14 Energy Capacity 515 Matter Stores 300 Matter Capacity 300 Sight Range 16 Robot Scan Range 15 Terrain Scan Density 10 Armor Coverage 375 Evasion (%) 40 Recoil Reduction 4 Offensive Hacking 10 Item Schematics ----------------- Enh. Autogun | -8/Materials | Scanalyzed Robot Schematics ------------------ None Fabricated ------------ Nothing Repaired ---------- Nothing Alien Tech Used ----------------- None Achievements -------------- None Challenges ------------ None Game ------ Seed ProcessingAssaultMatterbank Manual? 0 Play Time 01:13:39 Cumulative 190.7 hours Start 2025.06.02 @ 03:50:28 End 2025.07.28 @ 08:27:12 Sessions 5 Manual Loads 0 Difficulty Rogue Special Mode None Game No. 168 Rogue 168 Adventurer 0 Explorer 0 Win Type - Total 0 Types 0/0/0/0/0/0/0/0/0/0 Lore% 25 Gallery% 40 Achievement% 39 Wizard Run 0 Options --------- Layout 0 ASCII 1 Keyboard 0 Movement Mouse Keybinds 0 Fullscreen 1 Font 18/SmallcapsGlow Map View 76x50 Zoom Use 2% Tactical HUD 1 Map Filters NONE Filters NONE Steam 1 RUN: 5bd3c7ad-b7d2-4c91-a015-4a89478be82c